Cogmind - Beta 13 @@@ ROGUE MODE // 2024.04.28 @ 21:56:12 Player: Exceptionally Mediocre Result: Destroyed by as-91194 with Assembled Blade Performance ------------- Evolutions (0) 0 Regions Visited (4) 800 Robots Destroyed (36) 180 Value Destroyed (751) 751 Prototype IDs (3) 60 Alien Tech Used (0) 0 Bonus (0) 0 TOTAL SCORE: 1791 Bonus ------- None Cogmind --------- Core Integrity 0/250 Matter 295/300 Energy 250/250 System Corruption 0% Temperature Cool (0) Movement Hovering (290) Ox3 Location -9/Mines Parts ------- > --- POWER (1) -------- Ion Engine > --- PROPULSION (2) --- Combat Airjet > --- UTILITY (2) ------ High-capacity Storage Unit Experimental Sensor Array > --- WEAPON (2) ------- Light Assault Rifle Light Assault Rifle > --- INVENTORY (20) --- Light Ion Engine Light Nuclear Core Combat Airjet Combat Airjet Combat Airjet Medium Matter Pod (100) Signal Interpreter Improved Terrain Scanner Targeting Computer Light Armor Plating Medium Armor Plating Hacking Suite Beam Rifle Assault Rifle Heavy Assault Rifle Autogun Light Cannon Rocket Launcher Ripper Peak State ------------ > --- POWER ------------ Ion Engine > --- PROPULSION ------- Aluminum Leg Combat Airjet > --- UTILITY ---------- High-capacity Storage Unit Experimental Sensor Array > --- WEAPON ----------- Light Assault Rifle Light Assault Rifle > --- INVENTORY -------- Light Ion Engine Light Nuclear Core Combat Airjet Combat Airjet Combat Airjet Medium Matter Pod Signal Interpreter Improved Terrain Scanner Targeting Computer Light Armor Plating Medium Armor Plating Hacking Suite Beam Rifle Assault Rifle Heavy Assault Rifle Autogun Light Cannon Rocket Launcher Ripper [Rating: 23] Favorites ----------- Power Ion Engine Engine Ion Engine Propulsion Aluminum Leg Treads Light Treads Leg Aluminum Leg Hover Unit Combat Airjet Utility High-capacity Storage Unit Device Structural Scanner Storage High-capacity Storage Unit Processor Targeting Computer Weapon Light Assault Rifle Energy Gun Small Laser Ballistic Gun Light Assault Rifle Launcher Grenade Launcher Special Melee Weapon Datajack Build | -11 -10 -10 -10 -9 ------- Run | Yrd Mat Min Exi Min Slots Evolved . | . . . . . Power . | . . . . . Propulsion . | . . . . . Utility . | . . . . . Weapon . | . . . . . Parts Attached 30 | 8 14 7 . 1 Power 3 | 1 1 1 . . Engine 3 | 1 1 1 . . Core . | . . . . . Reactor . | . . . . . Propulsion 9 | 2 3 3 . 1 Treads 3 | 2 1 . . . Leg 5 | . 2 3 . . Wheel . | . . . . . Hover 1 | . . . . 1 Flight . | . . . . . Utility 7 | 2 3 2 . . Device 3 | 1 1 1 . . Storage 3 | 1 2 . . . Processor 1 | . . 1 . . Hackware . | . . . . . Protection . | . . . . . Artifact . | . . . . . Weapon 11 | 3 7 1 . . Energy Gun 3 | 1 2 . . . Energy Cannon . | . . . . . Ballistic Gun 6 | 2 3 1 . . Ballistic Cannon . | . . . . . Launcher 1 | . 1 . . . Special Weapon . | . . . . . Impact Weapon . | . . . . . Slashing Weapon . | . . . . . Piercing Weapon . | . . . . . Special Melee Weapon 1 | . 1 . . . Unidentified Prototypes 1 | . . 1 . . Parts Lost 11 | . 6 3 . 2 Power 2 | . 1 1 . . Propulsion 5 | . 2 1 . 2 Utility 1 | . . 1 . . Weapon 3 | . 3 . . . Highest Loss Streak 2 | . 2 2 . 2 To Critical Strikes 1 | . . 1 . . Average Slot Usage (%) 97 | . 95 98 100 100 Engine 13 | . 14 13 14 14 Treads 8 | . 16 . . . Leg 19 | . 10 27 28 28 Device 12 | . 14 6 14 14 Storage 14 | . 14 14 14 14 Processor 1 | . . 6 . . Ballistic Gun 24 | . 21 26 28 28 Launcher 1 | . 3 . . . Naked Turns . | . . . . . Heaviest Build 50 | 13 50 48 48 48 Greatest Support 40 | 40 40 20 20 20 Greatest Overweight (x) 3 | . 2 2 2 3 Average Overweight (x) 1 | . . 2 2 2 Largest Inventory Capacity 20 | 8 20 20 20 20 Average Capacity 17 | 7 15 20 20 20 Most Carried 20 | 2 19 20 20 20 Average Carried 15 | 1 13 19 20 19 Final Capacity 20 | 8 20 20 20 20 Final Carried 20 | 2 18 20 20 19 Class Distribution -------------------- 57% | Scavenger-Mutant 42% | Mutant Dominant Class ---------------- Mutant | -10/Materials Scavenger-Mutant | -10/Mines Scavenger-Mutant | -10/Exiles Scavenger-Mutant | -9/Mines Resources | -11 -10 -10 -10 -9 ----------- Run | Yrd Mat Min Exi Min Matter Collected 820 | 316 407 93 . 4 Remotely . | . . . . . Salvage Created 1101 | 122 831 148 . . Parts 76 | 8 57 11 . . Haulers Intercepted 2 | . 2 . . . Recyclers Shooed 5 | . 5 . . . Parts Field Recycled . | . . . . . Retrieved Matter . | . . . . . Parts Self-Destructed . | . . . . . Prevented . | . . . . . Kills | -11 -10 -10 -10 -9 ------- Run | Yrd Mat Min Exi Min Combat Hostiles Destroyed 20 | . 15 5 . . Guns 14 | . 9 5 . . AOE 6 | . 6 . . . Classes Destroyed 9 | 2 7 . . . Worker 1 | . 1 . . . Builder 1 | . 1 . . . Tunneler 4 | 3 . 1 . . Hauler 2 | . 2 . . . Recycler 3 | 1 2 . . . Operator 2 | . 2 . . . Watcher 3 | . 3 . . . Swarmer 6 | . 3 3 . . Grunt 14 | . 12 2 . . Best Kill Streak 5 | 2 5 3 . . Combat Bots Only 4 | . 4 3 . . Max Kills in Single Turn 3 | 1 3 1 . . Gunslinging . | . . . . . Exploded 3 | . 3 . . . Melee . | . . . . . Uniques/NPCs Destroyed . | . . . . . Combat | -11 -10 -10 -10 -9 -------- Run | Yrd Mat Min Exi Min Hostile Shots Fired 132 | . 77 44 . 11 Missed 39 | . 21 16 . 2 Damage Taken 1470 | . 894 322 . 254 Core 253 | . 126 88 . 39 Absorbed by Shields . | . . . . . Core Remaining (%) 100 | 100 . . . . Volleys Fired 143 | 18 101 22 . 2 Largest 2 | 2 2 2 . 2 Hottest 60 | 40 40 60 . 40 Shots Fired 269 | 36 185 44 . 4 Gun 266 | 36 182 44 . 4 Cannon . | . . . . . Launcher 3 | . 3 . . . Special . | . . . . . Kinetic 245 | 36 182 23 . 4 Thermal 21 | . . 21 . . Explosive 3 | . 3 . . . Electromagnetic . | . . . . . Robot Hit Streak 21 | 5 16 21 . 4 Robot Miss Streak 6 | 2 6 1 . 2 Penetration Max . | . . . . . Secondary Targets 3 | . 3 . . . Max Gunslinging Chain 1 | . 1 . . . Shots Hit Robots 181 | 24 120 35 . 2 Core Hits 77 | 9 56 11 . 1 Critical Kills . | . . . . . Critical Parts Destroyed . | . . . . . Critical Strikes . | . . . . . Melee Attacks 3 | . 3 . . . Impact . | . . . . . Slashing . | . . . . . Piercing . | . . . . . Sneak Attacks 3 | . 3 . . . Combat Hostiles . | . . . . . Follow-up Attacks . | . . . . . Damage Inflicted 2019 | 207 1473 326 . 13 Guns 1485 | 207 939 326 . 13 Cannons . | . . . . . Explosions 521 | . 521 . . . Melee . | . . . . . Ramming 13 | . 13 . . . Kinetic 1277 | 207 939 118 . 13 Thermal 475 | . 267 208 . . Explosive 254 | . 254 . . . Electromagnetic . | . . . . . Impact . | . . . . . Slashing . | . . . . . Piercing . | . . . . . Highest Corruption . | . . . . . Average Corruption . | . . . . . Corruption Purged . | . . . . . Corruption Blocked . | . . . . . Overload Shots . | . . . . . Overflow Damage 187 | . 187 . . . Projectiles . | . . . . . Explosions 187 | . 187 . . . Melee . | . . . . . Knockbacks . | . . . . . Impact . | . . . . . Kinetic . | . . . . . Secondary . | . . . . . Self-Inflicted Damage 194 | . 194 . . . Shots 5 | . 5 . . . Rammed . | . . . . . Targets Rammed 3 | . 2 . . 1 Kicked 3 | . 2 . . 1 Crushed . | . . . . . Highest Temperature 132 | . 25 132 . . Average Temperature 34 | . 10 57 . . Received Heat Transfer 498 | . 372 126 . . Siege Activations . | . . . . . Robots Corrupted . | . . . . . Combat Hostiles . | . . . . . Parts Fried . | . . . . . Impact Corruptions . | . . . . . Robots Melted . | . . . . . Combat Hostiles . | . . . . . Parts Melted 1 | . . 1 . . Heat Transferred 625 | . 150 475 . . Parts Sabotaged . | . . . . . Parts Stolen . | . . . . . Parts Stripped . | . . . . . Power Chain Reactions . | . . . . . Alert | -11 -10 -10 -10 -9 ------- Run | Yrd Mat Min Exi Min Peak Influence 226 | 20 226 153 . 15 Initial 63 | . 13 63 . . Average 65 | 7 85 60 . 8 Maximum Alert Level 1 | . 1 . . . Low Security (%) 96 | 100 93 100 . 100 Level 1 3 | . 6 . . . Level 2 . | . . . . . Level 3 . | . . . . . Level 4 . | . . . . . Level 5 . | . . . . . High Security . | . . . . . Max Security . | . . . . . Squads Dispatched 4 | . 4 . . . Investigation 2 | . 2 . . . Extermination . | . . . . . Reinforcement 2 | . 2 . . . Assault . | . . . . . Garrison . | . . . . . Intercept . | . . . . . Searches Triggered . | . . . . . Construction Impeded . | . . . . . Haulers Reinforced . | . . . . . Active Scanning Responses . | . . . . . Cargo Convoy Interrupts . | . . . . . Stealth | -11 -10 -10 -10 -9 --------- Run | Yrd Mat Min Exi Min Distress Signals 2 | . 2 . . . Communications Jammed . | . . . . . Distress Signals . | . . . . . Times Spotted 39 | . 26 5 . 8 Peak Tracking Total 5 | . 4 3 . 5 Tactical Retreats . | . . . . . Traps | -11 -10 -10 -10 -9 ------- Run | Yrd Mat Min Exi Min Traps Triggered 1 | . 1 . . . Indirectly . | . . . . . Trap Hack Attempts . | . . . . . Triggered . | . . . . . Disarmed . | . . . . . Reprogrammed . | . . . . . Reused . | . . . . . Traps Extracted . | . . . . . Installed . | . . . . . Triggered . | . . . . . Machines | -11 -10 -10 -10 -9 ---------- Run | Yrd Mat Min Exi Min Machines Disabled 4 | . 4 . . . Max in Single Turn 2 | . 2 . . . Machines Repaired . | . . . . . Machines Dismantled . | . . . . . Machines Sabotaged . | . . . . . Overloaded Fab Kills . | . . . . . Hacking | -11 -10 -10 -10 -9 --------- Run | Yrd Mat Min Exi Min Machines Accessed 8 | . 8 . . . Terminals 7 | . 7 . . . Fabricators . | . . . . . Repair Stations . | . . . . . Recycling Units 1 | . 1 . . . Scanalyzers . | . . . . . Garrison Access . | . . . . . Total Hacks 16 | . 16 . . . Successful 10 | . 10 . . . Failed 6 | . 6 . . . Catastrophic 1 | . 1 . . . Database Lockouts . | . . . . . Manual 14 | . 14 . . . Terminals 14 | . 14 . . . Fabricators . | . . . . . Repair Stations . | . . . . . Recycling Units 2 | . 2 . . . Scanalyzers . | . . . . . Garrison Access . | . . . . . Terminal Hacks 3 | . 3 . . . Prototype ID Bank 1 | . 1 . . . Branch Access Points 1 | . 1 . . . Recall Investigation 1 | . 1 . . . Fabricator Hacks . | . . . . . Repair Station Hacks . | . . . . . Recycling Unit Hacks 1 | . 1 . . . Retrieve Components 1 | . 1 . . . Scanalyzer . | . . . . . Garrison Access Hacks . | . . . . . Unauthorized Hacks 6 | . 6 . . . Terminals 6 | . 6 . . . Botnet 6 | . 6 . . . Fabricators . | . . . . . Repair Stations . | . . . . . Recycling Units . | . . . . . Scanalyzers . | . . . . . Garrison Access . | . . . . . Data Cores Recovered . | . . . . . Used . | . . . . . Hacking Detections 6 | . 6 . . . Full Trace Events 1 | . 1 . . . Feedback Events . | . . . . . Feedback Blocked . | . . . . . Robot Schematics Acquired . | . . . . . Robots Built . | . . . . . Authchips . | . . . . . Time . | . . . . . Total Robot Build Rating . | . . . . . Part Schematics Acquired . | . . . . . Parts Built . | . . . . . Authchips . | . . . . . Time . | . . . . . Total Part Build Rating . | . . . . . Parts Repaired . | . . . . . Time . | . . . . . Parts Recycled . | . . . . . Recycled Matter . | . . . . . Retrieved Matter . | . . . . . Retrieved Components 10 | . 10 . . . Parts Scanalyzed . | . . . . . Part Schematics Acquired . | . . . . . Parts Damaged . | . . . . . Bothacking | -11 -10 -10 -10 -9 ------------ Run | Yrd Mat Min Exi Min Used RIF Installer . | . . . . . Robots Hacked 2 | . 2 . . . Non-combat 2 | . 2 . . . Combat . | . . . . . Robot Hacks Applied 2 | . 2 . . . parse_system 1 | . 1 . . . no_distress 1 | . 1 . . . Relay Couplers Released . | . . . . . Fabnet Peak Effective % . | . . . . . Robots Rewired . | . . . . . Allies Hacked . | . . . . . Hacks Repelled . | . . . . . Allies | -11 -10 -10 -10 -9 -------- Run | Yrd Mat Min Exi Min Total Allies . | . . . . . Largest Group . | . . . . . Highest-Rated Group . | . . . . . Highest-Rated Ally . | . . . . . Total Orders . | . . . . . Ally Attacks . | . . . . . Total Damage . | . . . . . Kills . | . . . . . Allies Corrupted . | . . . . . Allies Melted . | . . . . . Intel | -11 -10 -10 -10 -9 ------- Run | Yrd Mat Min Exi Min Robot Analysis Total . | . . . . . Derelict Logs Recovered 2 | . . 1 . 1 Drone Launches . | . . . . . Drone Recoveries . | . . . . . Exploration | -11 -10 -10 -10 -9 ------------- Run | Yrd Mat Min Exi Min Turns Passed 4815 | 159 2296 914 861 585 Spaces Moved 1989 | 65 1056 322 332 214 Core 4 | 4 . . . . Treads 771 | 61 710 . . . Legs 1213 | . 346 322 332 213 Wheels . | . . . . . Hover 1 | . . . . 1 Flight . | . . . . . Fastest Speed 50 | 50 160 260 260 260 Average Speed 218 | 153 189 260 260 260 Slowest Speed 300 | 160 260 260 260 300 Overloaded Moves . | . . . . . Propulsion Burnouts . | . . . . . Robots Hopped . | . . . . . Cave-ins Triggered . | . . . . . Exploration Rate (%) 58 | 4 99 63 85 43 Regions Visited 4 Branch Regions 3 Pre-discovered Areas 1 | . . 1 . . Known Exits Taken 1 | . 1 . . . Unknown Exits Taken 3 | 1 . 1 1 . Scrap Searched 3 | . . 2 . 1 Spaces Dug . | . . . . . Terrain Destroyed 82 | . 82 . . . Melee . | . . . . . Projectile . | . . . . . AOE 82 | . 82 . . . Terrain Rammed . | . . . . . Walls Destroyed . | . . . . . Machines Disabled . | . . . . . Actions | -11 -10 -10 -10 -9 --------- Run | Yrd Mat Min Exi Min Total 2230 | 92 1203 360 331 244 Wait . | . . . . . Move 1985 | 64 1055 321 331 214 Hop . | . . . . . Pick Up 46 | 2 23 8 . 13 Fast Attach 9 | 7 2 . . . Attach 9 | . 5 3 . 1 Detach . | . . . . . Swap 12 | 1 7 4 . . Drop 20 | . 5 2 . 13 Fire 143 | 18 101 22 . 2 Melee 3 | . 3 . . . Ram . | . . . . . Kick 3 | . 2 . . 1 Crush . | . . . . . Escape Stasis . | . . . . . Rewire . | . . . . . Trap . | . . . . . Miscellaneous . | . . . . . Route ------- -11/Scrapyard -10/Materials (discovered 5 exits: [*Mat x3] / *Min / [Sub]) -10/Mines (discovered 2 exits: [*Mat] / [*Exi]) -10/Exiles -9/Mines (discovered 1 exit: [*Mat]) History --------- Turn | Location | Event 2 | -11/Scrapyard | Discovered new exit (range 16) 160 | -11/Scrapyard | Entered Materials 221 | -10/Materials | Discovered new exit (range 12) 317 | -10/Materials | Build established: Mutant 346 | -10/Materials | Discovered new exit (range 9) 346 | -10/Materials | Discovered new exit (range 15) 516 | -10/Materials | Discovered new exit (range 13) 1785 | -10/Materials | Identified exit to Mines 1829 | -10/Materials | Discovered new exit (range 9) 2001 | -10/Materials | Core integrity fell below 50% 2295 | -10/Materials | Build established: Scavenger-Mutant 2456 | -10/Materials | Entered Mines 2550 | -10/Mines | Core integrity fell below 20% 2618 | -10/Mines | Discovered new exit (range 5) 2670 | -10/Mines | Found a damaged Exp. Sensor Array with a note attached 2675 | -10/Mines | Found Prototype Device 2957 | -10/Mines | A weapon hastily lodged in a ceiling crevice suddenly fell to the ground 2971 | -10/Mines | Identified Exp. Sensor Array 3350 | -10/Mines | Deemed a non-threat by the Exiles lab entrance 3350 | -10/Mines | Discovered new exit (range 5) 3370 | -10/Mines | Entered Exiles 3370 | -10/Exiles | Found Exiles lab abandoned 4200 | -10/Exiles | Discovered new exit (range 14) 4231 | -10/Exiles | Entered Mines 4307 | -9/Mines | Joined a pair of Derelicts in attacking an 0b10 outpost 4538 | -9/Mines | Discovered new exit (range 6) 4737 | -9/Mines | Assembled infested the area 4742 | -9/Mines | Assisted by a Guerilla fighting off Assembled 4816 | -9/Mines | Destroyed by as-91194 with Assembled Blade Last Messages --------------- 04782_ U-05 Engineer lays Concrete. 04785_ U-05 Engineer builds a Wall. 04790_ as-91194 sneak attacks. 04790_ as-97263 sneak attacks. 04790_ K-01 Serf system corrupted by crushing effect. 04794_ Acquired 2 matter. 04795_ U-05 Engineer destroyed. 04798_ Dropped Imp. Heat Sink. 04799_ Acquired Cmb. Airjet. 04806_ as-01319 sneak attacks. 04806_ T-07 Excavator destroyed. 04811_ Aluminum Leg destroyed. 04812_ as-01319 sneak attacks. 04814_ Aluminum Leg destroyed. 04815_ as-97263 sneak attacks. 04815_ U-05 Engineer system corrupted by crushing effect. 04816_ U-05 Engineer system terminally corrupted. Map ----- +----------------------------------------------------+ | "##??????????????????????????????????????????????? | | *!#??????????????????????????????????????????????? | | [#??????????????????????????????????????????????? | | /##??????????????????????????????????????????????? | | ###??????????????????????????????????????????????? | | #??????????????????????????????????????????????? | | ####???????????????????????????????????????????? | | ##??????????????????????????????????????????? | | ##?????????????????????????????????????????? | | #?????????????????????????????????????????? | | #########?????????????????????????????????? | | ##### #?????????????????????????????????? | | #???# ######## #?????????????????????????????????? | | #???# #??????# #?????????????????????????????????? | | #???# #??????# #????????????????#????????????????? | | ##### #??????#!#??????????????? #????????????????? | | #??????# #????????###### #????????????????? | | #######??????#%######???# #????????????????? | | #????????????#=! #???# ???????????????????? | | #????????????###### ##### t#?????????????????????? | | #?????????????????# #?????????????????????? | | ??????????????????####### #?????????????????????? | | ??????????????????????### ###???????????????????? | | ??????????????????????# #???????????????????? | | ?????????????########## #???????????????????? | | #??????????### |=a a@< #???????????????????? | | #?????????## a a%a #???????????????????? | | #?????????# ####*## #???????????????????? | | #?????????# #??# ## #???????????????????? | | #?????????# #??#!#########???????????????????? | | #??????????# ! #??#%#???????????????????????????? | | #??#####??## ##??#!##??????????????????????????? | | #?## #### ##?##!*#####??????????????????????? | | ?## ## ###% ?! ##?????????????????????? | | ## *?=%! ##????????????????????? | | # ## !!? = ##???????????????????? | | ## #### ###?= #???????????????????? | | #### ##??# ##?##? #???????????????????? | | #??## #??# #???## ? #???????????????????? | | ##?## #??# #???# ? ##??????????????????? | | ### ##??## ##???## #??????????????????? | | #????####?????## #??????????????????? | | #?????????????# ##??????????????????? | | / ##???????????# #???????????????????? | | / ###???????????# ???????????????????? | | ##?????????????# ????????????????? | | ###??????????????# ???????????????? | | ##????????????????# [ ?????????????? | | ##????????????????# #????????????? | | #??????????????????# [ ##????????????? | +----------------------------------------------------+ Best States ------------- Heat Dissipation 25 Energy Generation 10 Energy Capacity 250 Matter Stores 300 Matter Capacity 300 Sight Range 16 Robot Scan Range 20 Terrain Scan Range 16 Terrain Scan Density 10 Evasion (%) 40 Targeting Accuracy 5 Recoil Reduction 2 Item Schematics ----------------- None Robot Schematics ------------------ None Fabricated ------------ Nothing Alien Tech Used ----------------- None Achievements -------------- None Challenges ------------ None Game ------ Seed AccelerationCorruptionFlamer Manual? 0 Play Time 00:22:54 Cumulative 133.0 hours Start 2024.04.28 @ 21:04:55 End 2024.04.28 @ 21:56:12 Sessions 1 Manual Loads 0 Difficulty Rogue Special Mode None Game No. 152 Rogue 152 Adventurer 0 Explorer 0 Win Type - Total 0 Types 0/0/0/0/0/0/0/0/0 Lore% 30 Gallery% 58 Achievement% 41 Wizard Run 0 Options --------- Layout 1 ASCII 0 Keyboard 1 Movement Vi Keybinds 0 Fullscreen 1 Font 24/Smallcaps Map View 50x35 Zoom Use 0% Tactical HUD 1 Map Filters NONE Filters NONE Steam 1 RUN: a1010734-b92a-47ee-958d-1eb37c9757c8